bitfinex/quotes_SOLUSD_20250823
["timestamp","ask_amount","ask_price","bid_price","bid_amount"]
[1755970355808,0.06,203.09,203.07,5.50436276]
[1755970356016,0.06,203.09,203.08,0.55]
[1755970356216,0.06,203.09,203.08,8.20943703]
[1755970357531,0.06,203.09,203.08,13.13360484]
[1755970358832,0.06,203.09,203.08,26.72919885]
[1755970359214,0.06,203.09,203.08,28.70056485]
[1755970361023,0.06,203.09,203.08,15.10497084]
[1755970362227,0.06,203.09,203.08,13.13360484]
[1755970363131,0.06,203.09,203.08,26.72919885]
[1755970364637,0.06,203.09,203.08,19.06976182]
[1755970364808,0.06,203.09,203.08,26.72919885]
[1755970365334,0.06,203.09,203.08,28.70056485]
[1755970366935,0.06,203.09,203.08,12.58360484]
[1755970367117,0.06,203.09,203.08,4.92416781]
[1755970367321,0.76,203.09,203.08,4.92416781]
[1755970367924,0.76,203.09,203.08,4.95416781]
[1755970368235,0.06,203.09,203.08,4.95416781]
[1755970370944,0.76,203.09,203.08,4.95416781]
[1755970372117,0.06,203.09,203.08,0.03]
[1755970372319,0.06,203.09,203.08,7.68943703]
[1755970374325,0.06,203.09,203.08,12.61360484]
[1755970375351,0.06,203.09,203.08,13.16360484]
[1755970377546,0.06,203.09,203.08,12.61360484]
[1755970377752,0.06,203.09,203.08,50.87360484]
[1755970379755,0.78,203.09,203.08,50.87360484]
[1755970380347,0.06,203.09,203.08,50.87360484]
[1755970382556,0.06,203.12,203.08,63.73402437]
[1755970382732,0.06,203.12,203.11,7.65943703]
[1755970383057,0.06,203.12,203.11,45.89943703]
[1755970383637,0.06,203.12,203.11,38.24]
[1755970383830,0.06,203.12,203.11,50.82287753]
[1755970384336,7.71943703,203.18,203.11,50.82287753]
[1755970384337,0.06,203.18,203.12,13.59559401]
[1755970384534,0.06,203.18,203.17,7.65943703]
[1755970384746,0.06,203.18,203.17,46.27943703]
[1755970385252,0.06,203.18,203.17,48.31080303]
[1755970386237,0.06,203.2,203.17,48.31080303]
[1755970386238,0.06,203.2,203.18,7.65943703]
[1755970386436,0.06,203.2,203.18,8.14943703]
[1755970386653,0.06,203.2,203.19,72.31943703]
[1755970386830,0.06,203.2,203.19,74.28983203]
[1755970388374,0.06,203.2,203.19,79.21133407]
[1755970389968,0.06,203.2,203.19,40.55133407]
[1755970390172,0.78,203.2,203.19,32.89189704]
[1755970390478,0.78,203.2,203.19,43.54150204]
[1755970390693,0.78,203.2,203.19,38.62]
[1755970390895,8.43943703,203.2,203.19,38.62]
[1755970394073,0.78,203.2,203.19,38.62]
[1755970399475,0.78,203.2,203.19,43.54150204]
[1755970399793,0.78,203.2,203.19,38.62]
[1755970399962,39.59559401,203.19,203.13,7.859437]
[1755970400164,7.65943703,203.17,203.11,7.65943703]
[1755970400375,0.72,203.16,203.12,46.43943703]
[1755970400573,0.72,203.15,203.12,38.78]
[1755970400776,0.72,203.15,203.09,4.92392535]
[1755970400982,0.72,203.15,203.11,7.65943703]
[1755970401172,0.72,203.15,203.1,46.45943703]
[1755970402099,0.72,203.15,203.1,51.38309163]
[1755970402580,8.37943703,203.15,203.1,43.7236546]
[1755970402777,0.72,203.14,203.1,43.7236546]
[1755970403094,0.72,203.13,203.1,43.7236546]
[1755970404702,0.72,203.12,203.1,38.8]
[1755970405699,26.0,203.19,203.11,7.65943703]
[1755970405700,0.72,203.15,203.11,7.65943703]
[1755970405878,7.65943703,203.16,203.11,8.14943703]
[1755970406079,14.785973,203.15,203.11,8.14943703]
[1755970406381,8.37943703,203.16,203.11,8.14943703]
[1755970406707,8.37943703,203.16,203.11,13.07267245]
[1755970407604,0.65,203.15,203.11,12.58267245]
[1755970407782,8.30943703,203.15,203.11,12.58267245]
[1755970408288,0.65,203.15,203.11,12.58267245]
[1755970408904,0.65,203.15,203.11,4.92323542]
[1755970409081,8.30943703,203.15,203.11,4.92323542]
[1755970411705,8.30943703,203.15,203.1,51.383072]
[1755970411890,8.30943703,203.15,203.1,51.873072]
[1755970412903,8.30943703,203.14,203.1,43.72363497]
[1755970413204,0.65,203.13,203.1,43.72363497]
[1755970413790,7.65943703,203.11,203.08,0.03]
[1755970414108,7.65943703,203.1,203.09,38.68]
[1755970414300,8.30943703,203.1,203.09,38.68]
[1755970415607,0.65,203.1,203.09,38.68]
[1755970417610,8.59376,203.13,203.09,38.68]
[1755970417911,7.65943703,203.15,203.1,0.49]
[1755970418090,34.30943703,203.16,203.1,8.14943703]
[1755970418287,0.65,203.18,203.13,7.65943703]
[1755970418507,0.65,203.17,203.14,38.64]
[1755970419198,0.71,203.19,203.14,46.29943703]
[1755970419406,0.06,203.19,203.14,46.29943703]
[1755970419589,0.65,203.18,203.15,4.92247108]
[1755970422311,7.71943703,203.19,203.15,4.92247108]
[1755970422515,0.06,203.19,203.15,4.92247108]
[1755970422695,0.06,203.19,203.16,0.49]
[1755970422891,0.06,203.19,203.18,7.65943703]
[1755970423093,0.06,203.19,203.18,8.14943703]
[1755970424498,0.06,203.19,203.18,13.07118129]
[1755970426415,0.06,203.19,203.18,26.6667753]
[1755970426615,0.2,203.21,203.18,26.6667753]
[1755970426824,0.2,203.21,203.2,47.25503104]
[1755970427117,0.2,203.21,203.2,85.87503104]
[1755970427301,0.2,203.21,203.2,86.36503104]
[1755970428420,1e-08,203.21,203.2,91.57061402]
[1755970428726,1e-08,203.21,203.2,93.54062102]
[1755970429203,1e-08,203.23,203.22,39.59559401]
[1755970429398,1e-08,203.23,203.22,85.85503104]
[1755970429912,1e-08,203.23,203.22,86.34503104]
[1755970430504,1e-08,203.23,203.22,93.23571555]
[1755970432406,1e-08,203.23,203.22,85.08627852]
[1755970432724,1e-08,203.23,203.22,66.74571555]
[1755970433814,1e-08,203.23,203.22,45.49068451]
[1755970434123,1e-08,203.23,203.22,53.15012154]
[1755970441326,1e-08,203.23,203.22,67.23571555]
[1755970443526,1e-08,203.23,203.22,66.74571555]
[1755970443915,1e-08,203.23,203.22,59.57627852]
[1755970444115,1e-08,203.23,203.22,66.74571555]
[1755970444336,1e-08,203.23,203.22,59.08627852]
[1755970444519,1e-08,203.23,203.22,66.74571555]
[1755970446336,1e-08,203.23,203.22,67.23571555]
[1755970446523,1e-08,203.23,203.22,66.74571555]
[1755970447138,1e-08,203.23,203.22,59.08627852]
[1755970447317,1e-08,203.23,203.22,66.74571555]
[1755970448030,1e-08,203.23,203.22,67.23571555]
[1755970448225,1e-08,203.23,203.22,66.74571555]
[1755970450633,1e-08,203.23,203.22,67.23571555]
[1755970451220,1e-08,203.23,203.22,59.57627852]
[1755970451422,1e-08,203.23,203.22,66.74571555]
[1755970452024,1e-08,203.23,203.22,67.23571555]
[1755970453049,1e-08,203.23,203.22,66.74571555]
[1755970457627,1e-08,203.23,203.18,0.52217442]
[1755970457628,8.30943704,203.23,203.18,0.03]
[1755970457838,7.65943703,203.19,203.18,0.03]
[1755970458337,8.21943703,203.19,203.18,0.03]
[1755970462636,0.56,203.19,203.18,0.03]
[1755970462941,8.21943703,203.19,203.18,0.03]
[1755970467960,0.56,203.19,203.18,0.03]
[1755970468448,8.21943703,203.19,203.18,0.03]
[1755970473662,7.65943703,203.19,203.18,0.03]
[1755970477663,14.783058,203.22,203.18,5.63159252]
[1755970477988,7.65943703,203.2,203.19,0.68]
[1755970478185,7.65943703,203.2,203.18,4.95159252]
[1755970478800,7.65943703,203.2,203.19,0.68]
[1755970490404,0.06,203.22,203.19,0.68]
[1755970490702,7.65943703,203.2,203.19,0.68]
[1755970491893,7.65943703,203.2,203.18,0.71]
[1755970492198,7.65943703,203.19,203.18,0.03]
[1755970492508,7.65943703,203.19,203.18,0.71]
[1755970492910,0.06,203.22,203.18,0.71]
[1755970493082,0.06,203.22,203.18,0.03]
[1755970493285,0.06,203.22,203.19,0.68]
[1755970493496,7.65943703,203.2,203.19,0.68]
[1755970498027,7.65943703,203.2,203.18,0.03]
[1755970498321,8.21943703,203.19,203.18,38.33]
[1755970498530,0.06,203.22,203.18,38.99]
[1755970498705,0.06,203.22,203.19,0.66]
[1755970499501,7.71943703,203.22,203.19,0.66]
[1755970500226,7.71943703,203.22,203.2,4.92125984]
[1755970500425,7.71943703,203.22,203.21,0.66]
[1755970500620,7.71943703,203.22,203.2,4.92125984]
[1755970500926,7.65943703,203.21,203.2,5.58125984]
[1755970504042,0.06,203.22,203.2,13.24069687]
[1755970504213,0.06,203.22,203.21,21.91503104]
[1755970505514,0.06,203.22,203.21,26.8360487]
[1755970506534,0.06,203.22,203.21,65.1360487]
[1755970507535,8.27943703,203.22,203.2,45.959437]
[1755970507739,7.65943703,203.21,203.2,38.3]
[1755970507918,8.27943703,203.22,203.2,38.3]
[1755970508419,7.71943703,203.22,203.2,38.3]
[1755970511320,7.65943703,203.21,203.2,38.3]
[1755970514840,7.71943703,203.22,203.2,38.3]
[1755970515745,7.71943703,203.22,203.21,0.66]
[1755970515918,7.71943703,203.22,203.2,43.22125185]
[1755970516120,7.71943703,203.22,203.2,38.3]
[1755970516515,7.65943703,203.21,203.2,38.3]
[1755970519243,0.06,203.22,203.2,43.22119971]
[1755970519449,0.06,203.22,203.21,0.66]
[1755970520524,0.06,203.22,203.21,5.58101766]
[1755970521648,0.06,203.22,203.21,26.8360487]
[1755970521837,0.06,203.22,203.21,19.17661167]
[1755970522037,0.06,203.22,203.21,26.8360487]
[1755970527445,0.06,203.22,203.21,28.8061527]
[1755970527827,0.06,203.22,203.21,26.8360487]
[1755970529352,0.06,203.22,203.21,28.8061527]
[1755970529523,1e-08,203.22,203.21,29.5825776]
[1755970529724,1e-08,203.24,203.23,26.0]
[1755970529930,1e-08,203.24,203.23,72.22376017]
[1755970530129,1e-08,203.24,203.23,77.85429355]
[1755970530556,1e-08,203.24,203.23,79.82400855]
[1755970534147,1e-08,203.25,203.24,21.25503104]
[1755970534552,1e-08,203.25,203.24,21.96503104]
[1755970534767,1e-08,203.26,203.25,0.28432314]
[1755970534931,1e-08,203.26,203.25,46.93376017]
[1755970535836,0.06,203.29,203.25,79.71904838]
[1755970536037,0.06,203.29,203.28,21.25503104]
[1755970536260,0.06,203.29,203.28,59.53503104]
[1755970536755,0.06,203.29,203.28,67.90446804]
[1755970538763,0.06,203.29,203.28,72.82379114]
[1755970540138,7.659437,203.41,203.28,85.40642203]
[1755970540340,0.56,203.36,203.32,7.65943703]
[1755970540544,0.56,203.36,203.33,38.26]
[1755970540865,0.56,203.35,203.33,38.26]
[1755970541967,0.56,203.35,203.34,4.91787154]
[1755970543441,8.21943703,203.37,203.34,4.91787154]
[1755970543660,0.56,203.36,203.35,38.26]
[1755970543961,8.21943703,203.36,203.35,38.26]
[1755970546159,7.65943703,203.37,203.35,38.26]
[1755970546669,7.65943703,203.37,203.35,43.17751977]
[1755970548258,8.21943703,203.38,203.35,43.17751977]
[1755970549793,7.65943703,203.38,203.35,43.17751977]
[1755970550177,0.56,203.4,203.35,43.88751977]
[1755970550346,7.65943703,203.39,203.36,0.71]
[1755970550677,7.65943703,203.39,203.37,38.26]
[1755970552651,8.21943703,203.4,203.37,43.17712257]
[1755970552848,0.56,203.4,203.37,43.17712257]
[1755970553053,7.65943703,203.4,203.37,43.88712257]
[1755970553265,7.71943703,203.41,203.37,43.17712257]
[1755970553462,7.71943703,203.41,203.38,0.71]
[1755970553668,7.71943703,203.41,203.39,38.24]
[1755970554062,0.06,203.41,203.39,38.24]
[1755970556586,0.06,203.41,203.4,0.71]
[1755970556884,0.06,203.41,203.39,38.95]
[1755970557070,0.06,203.41,203.39,38.24]
[1755970559683,0.06,203.41,203.39,38.96]
[1755970560173,7.71943703,203.41,203.39,43.15660069]
[1755970560377,7.71943703,203.41,203.4,0.72]
[1755970560569,0.06,203.41,203.4,0.72]
[1755970561373,0.06,203.41,203.4,5.63642084]
[1755970561680,0.06,203.41,203.4,13.29585787]
[1755970562372,0.06,203.41,203.4,5.63642084]
[1755970564257,0.06,203.41,203.4,13.26276312]
[1755970565566,0.06,203.41,203.4,26.85835713]
[1755970567387,0.06,203.41,203.4,35.04470013]
[1755970567596,1e-08,203.41,203.4,35.32902327]
[1755970568871,1e-08,203.43,203.42,13.87991715]
[1755970569074,1e-08,203.43,203.42,59.72625943]
[1755970569272,1e-08,203.43,203.42,60.44625943]
[1755970569785,0.56,203.56,203.52,7.62634228]
[1755970569988,0.56,203.56,203.53,38.2]
[1755970570176,15.316155,203.58,203.53,46.54634228]
[1755970570376,8.18634228,203.58,203.53,46.54634228]
[1755970570572,0.56,203.61,203.57,7.62634228]
[1755970570810,14.754703,203.6,203.58,38.92]
[1755970571111,0.56,203.65,203.59,8.34634228]
[1755970571414,7.62634228,203.65,203.6,45.82634228]
[1755970571607,8.18634228,203.65,203.6,38.92]
[1755970571777,8.18634228,203.65,203.61,4.91135013]
[1755970572086,0.56,203.65,203.62,38.2]
[1755970572481,7.62634228,203.66,203.62,38.2]
[1755970572688,8.18634228,203.66,203.62,38.2]
[1755970573194,0.56,203.66,203.62,38.2]
[1755970573399,14.748175,203.71,203.62,45.82634228]
[1755970573602,7.62634228,203.68,203.63,0.72]
[1755970573791,7.62634228,203.68,203.64,38.2]
[1755970574117,0.56,203.67,203.64,38.2]
[1755970574700,0.56,203.67,203.64,43.11060341]
[1755970575080,0.56,203.69,203.64,43.11060341]
[1755970575290,8.18634228,203.68,203.64,43.11060341]
[1755970576009,33.62634228,203.7,203.65,0.72]
[1755970576214,33.62634228,203.7,203.66,38.18]
[1755970576215,26.0,203.7,203.66,38.18]
[1755970576385,34.18634228,203.7,203.66,38.18]
[1755970576707,8.18634228,203.7,203.66,38.18]
[1755970576913,0.56,203.7,203.66,38.18]
[1755970577216,8.18634228,203.7,203.66,38.18]
[1755970579498,7.62634228,203.68,203.63,14.746725]
[1755970579701,7.62634228,203.65,203.64,38.18]
[1755970580001,7.62634228,203.66,203.64,38.18]
[1755970580202,7.62634228,203.66,203.64,38.9]
[1755970580388,26.56,203.69,203.64,38.9]
[1755970580585,7.62634228,203.68,203.65,0.72]
[1755970581014,14.74745,203.7,203.66,0.72]
[1755970581220,14.74745,203.7,203.67,38.18]
[1755970581395,7.62634228,203.72,203.68,0.72]
[1755970582184,7.62634228,203.72,203.67,50.71617823]
[1755970582379,41.304551,203.74,203.68,0.72]
[1755970582610,7.62634228,203.72,203.68,0.72]
[1755970583102,7.62634228,203.71,203.67,43.08983595]
[1755970583615,7.62634228,203.72,203.68,0.72]
[1755970583820,7.62634228,203.73,203.68,8.34634228]
[1755970583995,7.62634228,203.73,203.69,0.72]
[1755970584318,33.62634228,203.74,203.7,38.88]
[1755970584890,33.62634228,203.74,203.71,0.72]
[1755970584891,7.62634228,203.74,203.71,0.72]
[1755970585317,7.68634228,203.75,203.7,50.69550397]
[1755970585819,7.62634228,203.74,203.71,0.72]
[1755970586024,7.62634228,203.74,203.7,38.16]
[1755970586212,7.62634228,203.74,203.7,38.88]
[1755970586725,0.06,203.75,203.71,0.72]
[1755970586905,7.62634228,203.74,203.71,0.72]
[1755970587417,0.06,203.72,203.71,0.72]
[1755970591013,0.06,203.72,203.7,38.16]
[1755970591413,0.06,203.72,203.71,0.65]
[1755970598017,0.06,203.72,203.71,26.78087546]
[1755970598434,0.06,203.72,203.71,34.40721846]
[1755970599527,0.06,203.72,203.71,20.81162445]
[1755970599758,0.06,203.72,203.71,13.18528145]
[1755970599960,0.06,203.72,203.71,8.27634228]
[1755970600157,0.06,203.72,203.71,46.41634228]
[1755970600659,0.06,203.72,203.71,51.32528145]
[1755970603837,0.06,203.72,203.71,43.69893917]
[1755970604069,0.06,203.72,203.71,51.32528145]
[1755970604942,0.06,203.72,203.71,53.29064245]
[1755970607369,0.06,203.72,203.71,45.66430017]
[1755970607571,0.06,203.72,203.71,53.29064245]
[1755970608272,0.06,203.72,203.71,66.88623646]
[1755970612274,0.06,203.72,203.71,59.25989418]
[1755970612474,0.06,203.72,203.71,66.88623646]
[1755970617491,0.06,203.72,203.71,2.635361]
[1755970617701,0.06,203.72,203.71,51.30528145]
[1755970618968,0.06,203.72,203.71,43.67893917]
[1755970620694,0.06,203.72,203.71,0.67]
[1755970620910,0.06,203.72,203.71,43.67893917]
[1755970621973,0.06,203.72,203.71,48.54547217]
[1755970623396,5.48653323,203.72,203.71,4.866533]
[1755970623602,5.48653323,203.72,203.66,13.59559401]
[1755970623902,4.86653323,203.69,203.67,38.77]
[1755970624270,4.86653323,203.7,203.67,38.77]
[1755970624797,0.06,203.72,203.67,43.00973511]
[1755970625100,4.86653323,203.71,203.68,0.67]
[1755970625267,4.86653323,203.71,203.69,38.1]
[1755970627196,4.86653323,203.7,203.69,38.1]
[1755970628593,4.86653323,203.7,203.69,43.00942117]
[1755970628797,4.86653323,203.7,203.69,43.67942117]
[1755970629190,4.86653323,203.71,203.69,43.67942117]
[1755970630402,0.06,203.72,203.7,19.13212724]
[1755970630580,0.06,203.72,203.71,42.96653323]
[1755970630902,0.06,203.72,203.71,43.63653323]
[1755970632291,0.06,203.72,203.71,51.28141848]
[1755970632698,0.06,203.72,203.71,64.87701249]
[1755970635618,0.06,203.72,203.71,65.16133563]
[1755970635823,0.06,203.72,203.71,91.16133563]
[1755970638817,1e-08,203.72,203.71,91.16133563]
[1755970639604,1e-08,203.72,203.71,91.65222954]
[1755970639795,1e-08,203.72,203.71,91.16133563]
[1755970640210,1e-08,203.72,203.71,95.03140081]
[1755970640411,1e-08,203.72,203.71,91.16133563]
[1755970642726,1e-08,203.72,203.71,72.76381494]
[1755970643333,1e-08,203.72,203.71,74.72859594]
[1755970645107,1e-08,203.72,203.71,21.42363732]
[1755970645313,1e-08,203.72,203.71,4.90893917]
[1755970645530,1e-08,203.72,203.71,64.85701249]
[1755970645732,1e-08,203.72,203.71,65.14133563]
[1755970646337,1e-08,203.72,203.71,72.74381494]
[1755970646535,1e-08,203.72,203.71,65.14133563]
[1755970647213,0.62,203.84,203.76,4.90773458]
[1755970647522,7.60247931,203.8,203.77,13.87991715]
[1755970647734,7.60247931,203.94,203.77,13.87991715]
[1755970647735,0.62,203.79,203.78,51.89559401]
[1755970648213,0.62,203.81,203.78,51.89559401]
[1755970648410,0.62,203.8,203.78,51.89559401]
[1755970648643,0.62,203.79,203.78,51.89559401]
[1755970649242,8.22247931,203.81,203.78,51.89559401]
[1755970649414,0.62,203.8,203.78,56.80265809]
[1755970649835,0.62,203.8,203.78,51.89559401]
[1755970650220,0.62,203.82,203.78,56.80283425]
[1755970650423,0.62,203.81,203.78,56.80283425]
[1755970653548,8.22247931,203.83,203.78,56.80283425]
[1755970653732,0.62,203.82,203.78,56.80283425]
[1755970654729,0.06,203.81,203.78,56.80283425]
[1755970656526,0.06,203.81,203.78,57.45283425]
[1755970656942,0.06,203.81,203.78,56.80283425]
[1755970657139,0.06,203.81,203.78,57.45283425]
[1755970661850,0.06,203.81,203.79,0.65]
[1755970662055,0.06,203.81,203.8,38.2]
[1755970665739,0.06,203.81,203.8,38.85]
[1755970666062,0.06,203.81,203.8,64.95484466]
[1755970669467,0.06,203.81,203.8,52.44559401]
[1755970669632,0.06,203.81,203.8,51.79559401]
[1755970670642,0.06,203.81,203.8,56.70236535]
[1755970671340,0.06,203.81,203.8,57.35236535]
[1755970676945,0.06,203.81,203.8,64.95484466]
[1755970680367,0.06,203.81,203.8,62.21350942]
[1755970680667,0.06,203.81,203.8,51.79559401]
[1755970681055,0.06,203.81,203.8,56.70236535]
[1755970681249,0.06,203.81,203.8,62.24350942]
[1755970682852,0.06,203.81,203.8,62.52783256]
[1755970683376,0.06,203.81,203.8,57.66668849]
[1755970683580,0.06,203.81,203.8,62.52783256]
[1755970684071,0.06,203.81,203.8,88.52783256]
[1755970685854,0.06,203.81,203.8,83.66668849]
[1755970686078,0.06,203.81,203.8,88.52783256]
[1755970687357,0.62,203.89,203.84,39.59559401]
[1755970687683,0.1,203.9,203.86,4.86114407]
[1755970687886,0.1,203.9,203.87,38.06]
[1755970688387,0.1,203.9,203.87,42.96487486]
[1755970688574,0.1,203.9,203.87,4.90487486]
[1755970688780,0.1,203.89,203.88,38.06]
[1755970690670,0.1,203.89,203.86,14.729348]
[1755970690872,7.59163364,203.87,203.82,13.59559401]
[1755970691075,0.1,203.86,203.83,38.06]
[1755970691273,7.59163364,203.84,203.8,14.729348]
[1755970691479,7.59163364,203.81,203.8,52.829348]
[1755970691785,7.69163364,203.81,203.8,52.829348]
[1755970691984,26.0,203.86,203.8,38.1]
[1755970691985,0.1,203.83,203.8,38.1]
[1755970692166,0.1,203.82,203.8,38.1]
[1755970692360,14.729348,203.85,203.8,38.1]
[1755970692665,7.59163364,203.82,203.8,38.1]
[1755970692865,7.59163364,203.82,203.8,43.00673255]
[1755970696299,0.19,203.86,203.8,43.00673255]
[1755970696464,7.59163364,203.84,203.81,0.68]
[1755970696784,7.59163364,203.84,203.82,38.1]
[1755970697885,7.59163364,203.85,203.83,4.90604915]
[1755970698068,7.59163364,203.85,203.84,38.1]
[1755970699366,7.59163364,203.85,203.84,43.00580847]
[1755970699667,7.59163364,203.86,203.84,43.68580847]
[1755970699863,7.59163364,203.87,203.84,43.68580847]
[1755970701486,7.59163364,203.88,203.85,0.68]
[1755970701685,7.59163364,203.88,203.86,38.08]
[1755970701898,0.62,203.92,203.87,0.68]
[1755970702189,0.62,203.92,203.88,38.08]
[1755970702190,7.59163364,203.9,203.88,38.08]
[1755970702393,8.21163364,203.89,203.83,19.63608522]
[1755970702688,7.59163364,203.85,203.84,38.08]
[1755970702864,7.59163364,203.88,203.85,4.90556781]
[1755970703063,7.59163364,203.9,203.86,38.76]
[1755970703285,14.730071,203.89,203.86,38.76]
[1755970703673,7.59163364,203.9,203.86,38.76]
[1755970704089,0.68,203.92,203.87,0.68]
[1755970704295,7.59163364,203.9,203.88,38.08]
[1755970704470,7.65163364,203.9,203.88,38.08]
[1755970705500,8.21163364,203.89,203.88,38.08]
[1755970705676,7.59163364,203.89,203.88,38.08]
[1755970706703,8.21163364,203.89,203.88,38.08]
[1755970706875,0.62,203.89,203.88,38.08]
[1755970707081,8.21163364,203.89,203.88,38.08]
[1755970708092,8.21163364,203.89,203.82,15.390071]
[1755970708286,7.59163364,203.84,203.83,38.06]
[1755970710186,0.62,203.86,203.83,38.06]
[1755970710382,0.62,203.88,203.83,38.72]
[1755970710575,7.59163364,203.85,203.83,38.72]
[1755970710776,7.59163364,203.85,203.84,0.66]
[1755970711695,0.62,203.88,203.84,0.66]
[1755970711895,7.59163364,203.85,203.84,0.66]
[1755970712686,7.59163364,203.85,203.83,38.06]
[1755970712887,7.59163364,203.85,203.83,38.72]
[1755970713085,0.62,203.88,203.83,38.06]
[1755970713292,7.59163364,203.85,203.84,0.66]
[1755970713493,7.59163364,203.86,203.84,0.66]
[1755970713794,7.591634,203.89,203.84,0.66]
[1755970714108,0.06,203.9,203.84,0.66]
[1755970714410,7.59163364,203.88,203.84,0.66]
[1755970714699,7.59163364,203.89,203.84,0.66]
[1755970715031,7.59163364,203.88,203.84,0.66]
[1755970715506,0.06,203.9,203.85,0.66]
[1755970715691,7.59163364,203.87,203.86,38.06]
[1755970717811,0.06,203.9,203.86,38.72]
[1755970717997,7.59163364,203.88,203.86,38.72]
[1755970718390,7.59163364,203.87,203.86,38.72]
[1755970721238,0.06,203.9,203.86,38.72]
[1755970721441,7.59163364,203.87,203.86,38.72]
[1755970722612,6.59163364,203.87,203.86,38.72]
[1755970722814,0.06,203.9,203.86,38.72]
[1755970723031,7.59163364,203.87,203.86,38.72]
[1755970725013,0.06,203.9,203.87,13.59559401]
[1755970725220,0.06,203.9,203.88,38.06]
[1755970725419,0.06,203.9,203.88,38.72]
[1755970725620,0.06,203.9,203.89,0.66]
[1755970726516,0.06,203.9,203.87,21.18722801]
[1755970726517,7.65163364,203.9,203.87,59.90722801]
[1755970726742,7.59163364,203.88,203.87,59.24722801]
[1755970727144,7.59163364,203.89,203.87,52.31559401]
[1755970727518,7.59163364,203.89,203.87,59.90722801]
[1755970728641,7.59163364,203.89,203.88,0.66]
[1755970731858,7.65163364,203.9,203.88,0.66]
[1755970732020,7.65163364,203.9,203.89,38.72]
[1755970732221,0.06,203.9,203.89,38.72]
[1755970735146,0.06,203.9,203.89,43.62460542]
[1755970736957,0.06,203.9,203.89,42.96460542]
[1755970737121,0.06,203.9,203.89,43.62460542]
[1755970738455,0.06,203.9,203.89,38.72]
[1755970744455,0.06,203.9,203.88,12.49642346]
[1755970744628,4.85863908,203.89,203.88,7.591633]
[1755970744822,4.85863908,203.89,203.88,38.06]
[1755970746457,4.85863908,203.89,203.88,38.77]
[1755970752260,0.06,203.9,203.88,38.77]
[1755970752469,4.85863908,203.89,203.88,38.77]
[1755970752669,4.85863908,203.89,203.88,38.06]
[1755970752839,5.47863908,203.89,203.87,0.03]
[1755970753176,0.62,203.89,203.88,38.04]
[1755970754269,5.47863908,203.89,203.88,38.04]
[1755970756042,4.85863908,203.89,203.88,38.04]
[1755970758173,9.77727808,203.9,203.88,38.75]
[1755970758347,4.91863908,203.9,203.89,0.71]
[1755970758759,0.06,203.9,203.89,0.71]
[1755970759961,0.06,203.9,203.89,5.61460542]
[1755970764176,0.06,203.9,203.89,0.71]
[1755970765663,4.91863908,203.9,203.89,0.71]
[1755970765980,4.91863908,203.9,203.89,38.75]
[1755970779588,0.06,203.9,203.89,38.75]
[1755970782606,0.06,203.9,203.87,0.03]
[1755970782793,0.06,203.9,203.88,38.02]
[1755970783287,0.06,203.9,203.88,38.74]
[1755970788690,0.06,203.9,203.88,38.02]
[1755970789007,0.06,203.9,203.88,38.74]
[1755970789382,0.06,203.9,203.89,14.31559401]
[1755970789695,0.06,203.9,203.89,52.33559401]
[1755970789902,0.06,203.9,203.89,57.25423301]
[1755970790779,0.06,203.9,203.89,57.24019943]
[1755970791094,0.06,203.9,203.89,62.09883843]
[1755970791884,0.06,203.9,203.89,66.95747751]
[1755970797790,0.06,203.9,203.89,67.24180065]